bitfinex/quotes_ETHUSD_20210401
["timestamp","ask_amount","ask_price","bid_price","bid_amount"]
[1617246379868,28.5582287,1921.4,1921.3,1.5]
[1617246380068,16.20451,1921.4,1921.3,1.5]
[1617246380270,7.80451,1921.4,1921.3,1.5]
[1617246380473,4.84920347,1921.7,1921.3,5.28826888]
[1617246380692,4.84920347,1921.7,1921.3,14.98466888]
[1617246380888,4.84920347,1921.7,1921.5,3.37826888]
[1617246381087,4.84920347,1921.7,1921.5,4.82826888]
[1617246381522,4.84920347,1921.7,1921.5,1.5]
[1617246382519,12.65257347,1921.7,1921.5,1.5]
[1617246385536,12.65257347,1921.7,1921.6,0.15891393]
[1617246387138,12.65257347,1921.7,1921.6,0.05891393]
[1617246388760,4.84920347,1921.7,1921.6,0.05891393]
[1617246391996,12.84920347,1921.7,1921.6,0.05891393]
[1617246392799,4.84920347,1921.7,1921.6,0.05891393]
[1617246395012,10.69920347,1921.7,1921.6,0.05891393]
[1617246396215,6.95,1921.6,1921.5,1.45891393]
[1617246397238,5.1115,1921.6,1921.5,1.45891393]
[1617246397841,5.1115,1921.6,1921.5,1.60531054]
[1617246400187,3.2674,1921.6,1921.5,1.60531054]
[1617246402987,9.0674,1921.6,1921.5,1.60531054]
[1617246403188,1.4292,1921.6,1921.5,1.60531054]
[1617246403987,4.84920347,1921.7,1921.5,1.60531054]
[1617246404213,4.84920347,1921.7,1921.5,8.15621054]
[1617246404614,4.84920347,1921.7,1921.6,5.62372728]
[1617246404811,4.84920347,1921.7,1921.6,5.91072728]
[1617246405010,4.84920347,1921.7,1921.6,18.17072728]
[1617246405209,4.84920347,1921.7,1921.6,25.97223728]
[1617246405609,4.84920347,1921.7,1921.6,16.97223728]
[1617246405809,4.84920347,1921.7,1921.6,17.36223728]
[1617246406210,3.00670347,1921.7,1921.6,17.36223728]
[1617246407441,3.00670347,1921.7,1921.6,17.26223728]
[1617246407841,3.00670347,1921.7,1921.6,25.26223728]
[1617246408841,3.00670347,1921.7,1921.6,25.01223728]
[1617246409241,1.16750347,1921.7,1921.6,25.01223728]
[1617246412289,4.28029,1922.5,1921.6,25.01223728]
[1617246412494,0.14,1922.3,1922.0,7.79982]
[1617246412888,0.14,1922.3,1922.0,9.29982]
[1617246413490,0.14,1922.3,1922.0,9.57982]
[1617246413692,14.0,1922.6,1922.1,3.75850272]
[1617246413892,14.14,1922.6,1922.1,3.75850272]
[1617246414093,14.0,1922.6,1922.3,10.3603]
[1617246415337,14.0,1922.6,1922.3,13.1403]
[1617246415937,21.79951,1922.6,1922.3,13.1403]
[1617246416535,14.0,1922.6,1922.3,13.1403]
[1617246416736,14.0,1922.6,1922.4,0.16311474]
[1617246417135,14.0,1922.6,1922.5,0.18392737]
[1617246417342,14.0,1922.6,1922.5,1.68392737]
[1617246418341,12.1571,1922.6,1922.5,1.68392737]
[1617246420765,12.1571,1922.6,1922.5,0.68392737]
[1617246421366,10.318,1922.6,1922.5,0.68392737]
[1617246422165,10.318,1922.6,1922.5,0.82982253]
[1617246424194,10.318,1922.6,1922.5,8.62708253]
[1617246424394,8.4751,1922.6,1922.5,13.82708253]
[1617246426216,8.4751,1922.6,1922.5,13.67708253]
[1617246427518,6.636,1922.6,1922.5,13.67708253]
[1617246430163,6.636,1922.6,1922.5,5.87982253]
[1617246430368,4.7986,1922.6,1922.5,0.67982253]
[1617246432565,4.7986,1922.6,1922.5,4.05917841]
[1617246432764,4.7986,1922.6,1922.5,0.67982253]
[1617246433388,2.9565,1922.6,1922.5,0.67982253]
[1617246434386,2.9565,1922.6,1922.5,4.45069883]
[1617246434786,2.9565,1922.6,1922.5,4.06069883]
[1617246436217,2.9565,1922.6,1922.5,11.85819883]
[1617246436417,1.1166,1922.6,1922.5,11.85819883]
[1617246437018,1.1166,1922.6,1922.5,19.85819883]
[1617246437218,1.1166,1922.6,1922.5,25.05059883]
[1617246438638,1.1166,1922.6,1922.5,30.06059883]
[1617246439038,1.1166,1922.6,1922.5,29.96059883]
[1617246439439,1.0,1922.9,1922.5,29.96059883]
[1617246439440,0.1922,1922.9,1922.5,29.96059883]
[1617246439642,0.1922,1922.9,1922.7,7.79629]
[1617246439841,0.1922,1922.9,1922.7,13.88366158]
[1617246440041,0.1922,1922.9,1922.7,19.92456158]
[1617246440242,0.1922,1922.9,1922.8,1.5]
[1617246441466,0.1922,1922.9,1922.8,9.69603]
[1617246441666,0.1922,1922.9,1922.8,20.99603]
[1617246442468,0.39,1923.4,1922.8,12.59603]
[1617246442667,0.14,1923.3,1922.9,0.343]
[1617246442867,0.14,1923.3,1922.9,0.35]
[1617246443267,0.14,1923.3,1922.9,3.6990149]
[1617246443471,0.14,1923.3,1923.1,1.5]
[1617246443710,0.536,1923.4,1923.1,10.1476]
[1617246443911,0.126,1923.4,1923.1,10.1476]
[1617246444109,0.126,1923.4,1923.2,0.21635328]
[1617246444709,0.126,1923.4,1923.3,1.5]
[1617246445509,6.75,1923.4,1923.3,1.5]
[1617246445710,6.75,1923.4,1923.3,1.60836098]
[1617246445910,7.95,1923.4,1923.3,1.60836098]
[1617246446113,6.75,1923.4,1923.3,1.60836098]
[1617246446314,7.95,1923.4,1923.3,1.60836098]
[1617246446518,16.55,1923.4,1923.3,1.60836098]
[1617246447915,7.95,1923.4,1923.3,1.60836098]
[1617246448515,9.8629,1923.4,1923.3,1.60836098]
[1617246448937,17.65885,1923.4,1923.3,1.60836098]
[1617246449739,18.05885,1923.4,1923.3,1.60836098]
[1617246451965,16.45885,1923.4,1923.3,1.60836098]
[1617246452367,16.83885,1923.4,1923.3,1.60836098]
[1617246454408,20.6381929,1923.4,1923.3,1.60836098]
[1617246455201,20.6381929,1923.4,1923.3,1.82449385]
[1617246458213,19.4381929,1923.4,1923.3,1.82449385]
[1617246458413,20.2581929,1923.4,1923.3,1.82449385]
[1617246458814,19.0581929,1923.4,1923.3,1.82449385]
[1617246460269,19.0581929,1923.4,1923.3,1.72449385]
[1617246462272,13.4581929,1923.4,1923.3,1.72449385]
[1617246464274,5.6622429,1923.4,1923.3,1.72449385]
[1617246465091,2.5993429,1923.4,1923.3,1.72449385]
[1617246466691,12.5993429,1923.4,1923.3,1.72449385]
[1617246467918,20.3953429,1923.4,1923.3,1.72449385]
[1617246469119,12.5993429,1923.4,1923.3,1.72449385]
[1617246471940,12.5475329,1923.4,1923.3,1.68796385]
[1617246472567,12.5475329,1923.4,1923.3,1.65745385]
[1617246472765,12.5475329,1923.4,1923.3,1.47348385]
[1617246473168,12.5475329,1923.4,1923.3,1.45977385]
[1617246473369,12.5129929,1923.4,1923.3,1.39265385]
[1617246474169,12.4611829,1923.4,1923.3,1.35151385]
[1617246474972,12.4514729,1923.4,1923.3,1.35151385]
[1617246475613,8.9048729,1923.4,1923.3,1.35151385]
[1617246475816,11.5042158,1923.4,1923.3,1.35151385]
[1617246476014,11.4698858,1923.4,1923.3,1.35151385]
[1617246476213,11.4698858,1923.4,1923.3,1.29804385]
[1617246476614,11.4698858,1923.4,1923.3,1.21909385]
[1617246476813,11.4463958,1923.4,1923.3,1.15213385]
[1617246478217,11.4367858,1923.4,1923.3,1.15213385]
[1617246478615,7.0606829,1923.4,1923.3,1.15213385]
[1617246479917,6.9861729,1923.4,1923.3,1.15213385]
[1617246480364,6.9534729,1923.4,1923.3,1.15213385]
[1617246481361,6.9016629,1923.4,1923.3,1.15213385]
[1617246481761,5.0604629,1923.4,1923.3,1.15213385]
[1617246482163,5.0529129,1923.4,1923.3,1.15213385]
[1617246482974,10.6029129,1923.4,1923.3,1.15213385]
[1617246483977,23.1463029,1923.4,1923.3,1.15213385]
[1617246484179,23.0993129,1923.4,1923.3,1.15213385]
[1617246484578,22.9853229,1923.4,1923.3,1.15213385]
[1617246484777,23.2202429,1923.4,1923.3,1.15213385]
[1617246484978,30.9702429,1923.4,1923.3,1.15213385]
[1617246485179,39.9665329,1923.4,1923.3,1.15213385]
[1617246485596,32.2165329,1923.4,1923.3,1.15213385]
[1617246485798,31.0165329,1923.4,1923.3,1.15213385]
[1617246485998,30.6365329,1923.4,1923.3,1.15213385]
[1617246486197,32.2365329,1923.4,1923.3,1.15213385]
[1617246487599,31.8365329,1923.4,1923.3,1.15213385]
[1617246488220,30.6365329,1923.4,1923.3,1.15213385]
[1617246488619,30.63653275,1923.4,1923.3,1.15213385]
[1617246490018,31.02653275,1923.4,1923.3,1.15213385]
[1617246490220,32.22653275,1923.4,1923.3,1.15213385]
[1617246490850,31.02653275,1923.4,1923.3,1.15213385]
[1617246491450,30.63653275,1923.4,1923.3,1.15213385]
[1617246493050,31.03653275,1923.4,1923.3,1.15213385]
[1617246495473,30.63653275,1923.4,1923.3,1.15213385]
[1617246497295,32.17268105,1923.4,1923.3,1.15213385]
[1617246501347,32.17268105,1923.4,1923.3,1.23354286]
[1617246501947,19.62268105,1923.4,1923.3,1.23354286]
[1617246505668,19.62268105,1923.4,1923.3,1.51354286]
[1617246506696,19.62268105,1923.4,1923.3,1.23354286]
[1617246508900,19.57268105,1923.4,1923.3,1.23354286]
[1617246512648,19.96268105,1923.4,1923.3,1.23354286]
[1617246513248,19.57268105,1923.4,1923.3,1.12518188]
[1617246520647,14.02268105,1923.4,1923.3,1.12518188]
[1617246527598,14.0342908,1923.4,1923.3,1.12518188]
[1617246532443,14.02868105,1923.4,1923.3,1.12518188]
[1617246532854,14.04022208,1923.4,1923.3,1.12518188]
[1617246533652,14.03422208,1923.4,1923.3,1.12518188]
[1617246533852,14.02868105,1923.4,1923.3,1.12518188]
[1617246534054,6.23239105,1923.4,1923.3,1.12518188]
[1617246534453,12.83239105,1923.4,1923.3,1.12518188]
[1617246535901,12.83239105,1923.4,1923.3,1.40518188]
[1617246537403,12.83239105,1923.4,1923.3,0.57754188]
[1617246538602,12.83794988,1923.4,1923.3,0.57754188]
[1617246538804,6.24394988,1923.4,1923.3,0.57754188]
[1617246539205,6.23239105,1923.4,1923.3,0.57754188]
[1617246539404,6.23239105,1923.4,1923.3,3.95143246]
[1617246539605,6.23239105,1923.4,1923.3,15.94463246]
[1617246540206,6.23239105,1923.4,1923.3,12.94463246]
[1617246540405,6.23239105,1923.4,1923.3,15.55463246]
[1617246542236,3.20629105,1923.4,1923.3,15.55463246]
[1617246542433,3.20029105,1923.4,1923.3,15.55463246]
[1617246543031,3.20629105,1923.4,1923.3,15.55463246]
[1617246543233,3.20029105,1923.4,1923.3,15.55463246]
[1617246543479,3.20629105,1923.4,1923.3,12.18074188]
[1617246544279,8.85629105,1923.4,1923.3,12.18074188]
[1617246545281,8.85629105,1923.4,1923.3,12.56074188]
[1617246545678,3.20629105,1923.4,1923.3,12.18074188]
[1617246545879,3.20629105,1923.4,1923.3,9.18074188]
[1617246546282,10.99684105,1923.4,1923.3,9.18074188]
[1617246546884,10.99684105,1923.4,1923.3,0.57754188]
[1617246547887,10.99684105,1923.4,1923.3,0.65906109]
[1617246549329,10.99684105,1923.4,1923.3,0.37906109]
[1617246549730,10.99684105,1923.4,1923.3,0.65906109]
[1617246550532,11.00284105,1923.4,1923.3,0.65906109]
[1617246553737,3.20629105,1923.4,1923.3,0.65906109]
[1617246554358,3.20629105,1923.4,1923.3,7.47830981]
[1617246554359,3.20029105,1923.4,1923.3,7.47830981]
[1617246554558,3.20029105,1923.4,1923.3,12.48830981]
[1617246554757,3.20029105,1923.4,1923.3,15.60830981]
[1617246554959,3.20029105,1923.4,1923.3,15.21830981]
[1617246555157,3.20029105,1923.4,1923.3,23.01316981]
[1617246555557,3.20029105,1923.4,1923.3,20.01316981]
[1617246555761,3.20029105,1923.4,1923.3,7.20830981]
[1617246555957,3.20029105,1923.4,1923.3,4.08830981]
[1617246556157,3.20029105,1923.4,1923.3,11.88319981]
[1617246557180,1.34519105,1923.4,1923.3,11.88319981]
[1617246557981,1.34519105,1923.4,1923.3,4.08830981]
[1617246558182,1.34519105,1923.4,1923.3,11.68420981]
[1617246558383,1.34519105,1923.4,1923.3,15.36420981]
[1617246568886,1.34519105,1923.4,1923.3,15.26420981]
[1617246576362,1.34519105,1923.4,1923.3,11.55496109]
[1617246576568,1.34519105,1923.4,1923.3,8.15496109]
[1617246576770,1.34519105,1923.4,1923.3,8.35446084]
[1617246579790,1.34519105,1923.4,1923.3,8.25446084]
[1617246580840,1.34519105,1923.4,1923.2,4.12325464]
[1617246580841,2.93519105,1923.4,1923.2,0.7363]
[1617246581037,2.93519105,1923.4,1922.3,14.9155]
[1617246581038,2.68519105,1923.2,1922.3,14.9155]
[1617246581238,2.68519105,1923.2,1922.1,2.0]
[1617246581239,0.14,1922.9,1922.1,2.0]
[1617246581437,0.14,1922.5,1922.1,2.0]
[1617246581637,0.14,1922.3,1922.1,2.0]
[1617246581838,9.28636105,1922.2,1922.1,2.0]
[1617246582039,9.14636105,1922.2,1922.1,2.0]
[1617246582236,1.34519105,1922.5,1922.1,1.95]
[1617246582435,1.34519105,1922.5,1922.1,0.28]
[1617246582637,0.14,1922.4,1922.1,0.28]
[1617246582837,0.14,1922.4,1922.1,0.665]
[1617246583040,2.63029105,1922.5,1922.1,0.385]
[1617246583041,4.85046595,1922.5,1922.1,0.385]
[1617246583240,4.99046595,1922.5,1922.4,0.38]
[1617246583440,4.99046595,1922.5,1922.3,0.4]
[1617246583639,4.99046595,1922.5,1922.3,0.694]
[1617246584241,4.99046595,1922.5,1922.0,5.01]
[1617246584440,3.15246595,1922.5,1922.2,0.28]
[1617246584642,3.15246595,1922.5,1922.3,0.42]
[1617246586264,10.95213595,1922.5,1922.3,0.42]
[1617246586463,9.82213595,1922.5,1922.3,0.42]
[1617246588483,9.68213595,1922.5,1922.3,0.42]
[1617246590387,10.44361085,1922.5,1922.3,0.81]
[1617246590612,10.3998449,1922.5,1922.3,0.81]
[1617246591212,2.6001749,1922.5,1922.3,0.81]
[1617246593435,0.7615749,1922.5,1922.3,0.81]
[1617246594435,0.7615749,1922.5,1922.4,0.19182041]
[1617246594835,8.5610949,1922.5,1922.4,0.19182041]
[1617246595861,0.7615749,1922.5,1922.4,0.19182041]
[1617246596064,0.7615749,1922.5,1922.4,0.47182041]
[1617246596464,2.6002498,1922.5,1922.4,0.47182041]
[1617246599490,7.6223698,1922.7,1922.4,0.88182041]
[1617246600090,7.6223698,1922.7,1922.4,0.92382041]
[1617246601322,2.6001749,1922.5,1922.4,0.51382041]
[1617246601725,2.6001749,1922.5,1922.4,0.47182041]
[1617246602123,2.6001749,1922.5,1922.4,0.87182041]
[1617246602522,0.7320749,1922.5,1922.4,0.87182041]
[1617246602924,7.93896,1922.7,1922.4,0.87182041]
[1617246603524,7.93896,1922.7,1922.4,0.91382041]
[1617246604944,7.93896,1922.7,1922.6,0.41]
[1617246604945,0.14,1922.7,1922.6,0.41]
[1617246605149,12.9980796,1922.9,1922.7,0.378]
[1617246605150,2.5997096,1922.9,1922.7,0.378]
[1617246605345,15.67253429,1923.1,1922.7,0.48566683]
[1617246605551,0.68273429,1923.1,1922.8,0.322]
[1617246606147,1.88273429,1923.1,1922.8,0.322]
[1617246606365,9.13738,1923.1,1922.8,0.322]
[1617246607790,7.93738,1923.1,1922.8,0.322]
[1617246608193,9.13738,1923.1,1922.8,0.322]
[1617246609397,7.93738,1923.1,1922.8,0.322]
[1617246609595,7.93738,1923.1,1922.7,0.10766683]
[1617246609596,9.13738,1923.1,1922.7,0.46466683]
[1617246609996,7.93738,1923.1,1922.7,0.46466683]
[1617246610995,7.93738,1923.1,1922.7,0.85466683]
[1617246611202,7.93738,1923.1,1922.8,0.743]
[1617246611395,7.93738,1923.1,1922.8,7.7802]
[1617246611619,7.93738,1923.1,1922.8,7.3802]
[1617246612221,7.93738,1923.1,1922.8,7.3172]
[1617246612420,3.3647213,1923.0,1922.8,7.0372]
[1617246612621,0.14,1923.1,1922.8,7.0372]
[1617246612822,3.3647213,1923.2,1922.8,1.8364544]
[1617246612823,33.55,1922.9,1922.8,1.8364544]
[1617246613021,33.55,1922.9,1922.4,0.19182041]
[1617246613022,0.14,1922.7,1922.4,0.19182041]
[1617246613221,36.03965424,1922.5,1922.4,0.19182041]
[1617246614242,44.03965424,1922.5,1922.4,0.19182041]
[1617246615244,51.84157424,1922.5,1922.4,0.19182041]
[1617246617070,51.44157424,1922.5,1922.4,0.19182041]
[1617246617268,43.44157424,1922.5,1922.4,0.19182041]
[1617246617670,43.44157424,1922.5,1921.6,1.0]
[1617246617671,20.1,1922.4,1921.5,14.28572041]
[1617246617868,20.1,1922.4,1921.7,5.39]
[1617246617869,0.53,1922.3,1921.7,5.39]
[1617246618069,0.53,1922.3,1922.1,0.378]
[1617246618269,1.73,1922.3,1921.9,0.35]
[1617246618470,1.73,1922.3,1922.0,0.35]
[1617246618673,9.53068,1922.3,1922.0,0.336]
[1617246619270,9.53068,1922.3,1921.7,0.38]
[1617246619497,0.14,1922.2,1921.9,0.602]
[1617246620299,0.14,1922.2,1921.9,0.71035375]
[1617246620901,7.8003,1922.4,1922.0,0.098]
[1617246621101,7.8003,1922.4,1922.1,0.588]
[1617246621702,0.52,1922.5,1922.1,0.588]
[1617246621904,0.52,1922.5,1922.2,0.112]
[1617246622312,0.38,1922.5,1922.2,0.112]
[1617246622719,8.17976,1922.5,1922.2,0.112]
[1617246623113,8.17976,1922.5,1921.9,0.50835375]
[1617246623316,8.17976,1922.5,1922.1,0.574]
[1617246623317,0.41,1922.3,1922.1,0.574]
[1617246624314,10.81139,1922.4,1922.1,0.574]
[1617246624514,0.14,1922.5,1922.1,0.574]
[1617246624763,24.4291,1922.8,1922.1,0.574]
[1617246624963,0.4,1922.7,1922.2,0.126]
[1617246625564,1.2,1922.5,1922.2,0.126]
[1617246626164,9.00033,1922.5,1922.2,0.126]
[1617246626566,9.00033,1922.5,1922.3,0.17747182]
[1617246629368,23.61,1922.4,1922.3,0.17747182]
[1617246629569,24.81,1922.4,1922.3,0.17747182]
[1617246629768,29.82,1922.4,1922.3,0.17747182]
[1617246630793,37.62139,1922.4,1922.3,0.17747182]
[1617246631194,37.62139,1922.4,1921.9,0.38835375]
[1617246632394,37.62139,1922.4,1922.0,0.17793857]
[1617246632619,18.65,1922.1,1922.0,0.17793857]
[1617246632818,18.25,1922.1,1922.0,0.17793857]
[1617246633018,19.45,1922.1,1922.0,0.17793857]
[1617246633218,18.25,1922.1,1922.0,0.17793857]
[1617246633419,6.21,1922.2,1922.0,0.17793857]
[1617246633620,1.2,1922.2,1922.0,0.17793857]
[1617246634623,6.21,1922.2,1922.0,0.17793857]
[1617246634824,1.2,1922.3,1922.0,0.84793857]
[1617246635441,1.2,1922.3,1922.1,0.41]
[1617246637643,0.4,1922.4,1922.0,0.45793857]
[1617246637887,0.4,1922.4,1922.2,0.17793857]
[1617246638087,1.6,1922.4,1922.2,0.17793857]
[1617246638287,7.80036,1922.3,1922.2,0.17793857]
[1617246638686,0.4,1922.4,1922.2,0.17793857]
[1617246638887,5.01,1922.5,1922.2,0.17793857]
[1617246639488,5.01,1922.5,1922.2,0.45793857]
[1617246639692,13.40313213,1922.6,1922.2,0.45793857]
[1617246639889,14.060316,1922.6,1922.2,0.45793857]
[1617246640089,7.79992,1922.4,1922.2,0.17793857]
[1617246643318,2.4804065,1922.4,1922.2,0.17793857]
[1617246644116,3.6804065,1922.4,1922.2,0.17793857]
[1617246644317,7.80153,1922.3,1922.2,0.17793857]
[1617246644517,22.76153,1922.3,1922.2,0.17793857]
[1617246647554,12.81153,1922.3,1922.2,0.17793857]
[1617246647751,7.80153,1922.3,1922.2,0.17793857]
[1617246651129,14.15153,1922.3,1922.2,0.17793857]
[1617246655737,7.80153,1922.3,1922.2,0.17793857]
[1617246657143,16.00153,1922.3,1922.2,0.17793857]
[1617246657342,16.38153,1922.3,1922.2,0.17793857]
[1617246657743,17.58153,1922.3,1922.2,0.17793857]
[1617246659767,17.20153,1922.3,1922.2,0.17793857]
[1617246660168,22.80153,1922.3,1922.2,0.17793857]
[1617246660574,17.20153,1922.3,1922.2,0.17793857]
[1617246663009,16.00153,1922.3,1922.2,0.17793857]
[1617246663611,7.80153,1922.3,1922.2,0.17793857]
[1617246666024,5.90703,1922.3,1922.2,0.17793857]
[1617246669056,4.06623,1922.3,1922.2,0.17793857]
[1617246670503,4.06623,1922.3,1922.2,0.55793857]
[1617246671109,4.06623,1922.3,1922.2,0.17793857]
[1617246671905,2.22753,1922.3,1922.2,0.17793857]
[1617246673909,7.57753,1922.3,1922.2,0.17793857]
[1617246679349,2.22753,1922.3,1922.2,0.17793857]
[1617246680973,0.38453,1922.3,1922.2,0.56793857]
[1617246682377,0.38453,1922.3,1922.2,0.17793857]
[1617246683998,7.80153,1922.3,1922.2,0.17793857]
[1617246684398,7.80153,1922.3,1922.2,0.25938985]
[1617246684598,7.80153,1922.3,1921.8,7.80026]
[1617246684599,6.55,1922.2,1921.8,6.91854444]
[1617246684799,6.94,1922.2,1922.1,0.28]
[1617246684998,6.94,1922.2,1921.9,3.23674619]
[1617246685443,0.39,1922.2,1922.1,0.19382795]
[1617246685642,10.01757,1922.4,1922.1,0.19382795]
[1617246685643,10.01757,1922.4,1922.1,0.54382795]
[1617246686242,7.8007,1922.2,1922.1,0.54382795]
[1617246686653,7.8007,1922.2,1922.1,0.19382795]
[1617246687043,4.8649,1922.2,1922.1,0.19382795]
[1617246687848,13.6149,1922.2,1922.1,0.19382795]
[1617246689848,13.6149,1922.2,1922.1,0.35697239]
[1617246692675,13.2149,1922.2,1922.1,0.35697239]
[1617246694499,4.8649,1922.2,1922.1,0.35697239]
[1617246696125,2.9895,1922.2,1922.1,0.35697239]
[1617246696764,2.9895,1922.2,1922.1,0.63697239]
[1617246699161,1.1527,1922.2,1922.1,0.63697239]
[1617246700363,1.1527,1922.2,1922.1,0.53697239]
[1617246700765,10.85433,1922.3,1922.2,19.785]
[1617246700766,0.4521,1922.3,1922.2,19.785]
[1617246700979,0.4461,1922.3,1922.2,24.445]
[1617246701176,0.4461,1922.3,1922.2,24.06]
[1617246701776,0.4461,1922.3,1922.2,31.85812]
[1617246701974,0.4461,1922.3,1922.2,48.0933797]
[1617246702176,0.006,1922.7,1922.4,0.09406894]
[1617246702377,0.006,1922.7,1922.4,7.23428686]
[1617246702581,0.006,1922.7,1922.5,0.455]
[1617246702777,0.006,1922.7,1922.6,3.36021792]
[1617246702977,0.006,1922.7,1922.6,11.40255792]
[1617246703179,0.006,1922.7,1922.6,14.68255792]
[1617246704398,0.006,1922.7,1922.6,15.08255792]
[1617246705002,0.01191,1922.8,1922.7,2.994]
[1617246705207,1.88187762,1923.2,1922.7,3.08806894]
[1617246705407,7.7,1922.8,1922.7,5.78806894]
[1617246705604,15.49932,1922.8,1922.7,2.994]
[1617246706003,15.09932,1922.8,1922.7,2.994]
[1617246707426,15.09932,1922.8,1922.7,2.894]
[1617246708427,7.3,1922.8,1922.7,3.174]
[1617246708627,7.3,1922.8,1922.7,2.894]
[1617246709652,7.79843,1923.1,1922.7,3.174]
[1617246709852,0.41,1923.2,1922.8,0.42]
[1617246710051,0.41,1923.2,1922.9,0.28]
[1617246710251,0.54268168,1923.3,1922.9,0.28]
[1617246710455,11.47923432,1923.4,1923.0,0.42]
[1617246710852,11.0,1923.4,1923.3,0.44198628]
[1617246712581,16.35,1923.4,1923.3,0.44198628]
[1617246712780,11.0,1923.4,1923.3,0.44198628]
[1617246712983,11.38,1923.4,1923.3,0.16198628]
[1617246713180,19.17707,1923.4,1923.3,0.16198628]
[1617246716407,18.79707,1923.4,1923.3,0.16198628]
[1617246717630,19.18707,1923.4,1923.3,0.16198628]
[1617246719452,25.03707,1923.4,1923.3,0.16198628]
[1617246719652,19.18707,1923.4,1923.3,0.16198628]
[1617246721054,18.79707,1923.4,1923.3,0.16198628]
[1617246722285,18.79707,1923.4,1923.3,0.44198628]
[1617246724709,18.79707,1923.4,1923.3,0.16198628]
[1617246724710,19.19707,1923.4,1923.3,0.16198628]
[1617246728132,7.79771,1923.2,1922.6,7.89144894]
[1617246728333,0.4,1923.0,1922.9,0.434]
[1617246729332,0.4,1923.0,1922.9,0.62963781]
[1617246729533,7.79771,1923.2,1922.9,0.62963781]
[1617246729776,7.79771,1923.2,1922.9,0.19563781]
[1617246729777,23.26,1923.0,1922.9,0.19563781]
[1617246730178,28.27,1923.0,1922.9,0.19563781]
[1617246730378,29.47,1923.0,1922.9,0.19563781]
[1617246730979,37.26928,1923.0,1922.9,0.19563781]
[1617246735409,45.26928,1923.0,1922.9,0.19563781]
[1617246736615,45.26928,1923.0,1922.9,7.81e-06]
[1617246736813,45.26928,1923.0,1922.2,0.7]
[1617246736814,3.35181798,1922.9,1922.2,0.7]
[1617246737011,0.41,1922.4,1922.2,0.7]
[1617246737211,0.41,1922.4,1921.6,35.2121]
[1617246737212,0.41,1922.4,1922.0,0.469]
[1617246737833,0.41,1922.4,1922.1,0.16313596]
[1617246738234,13.55214,1922.2,1922.1,0.39413596]
[1617246738434,13.55214,1922.2,1922.1,0.16313596]
[1617246738636,22.11434,1922.2,1922.1,0.16313596]
[1617246739237,41.16434,1922.2,1922.1,0.16313596]
[1617246739833,41.70732152,1922.2,1922.1,0.16313596]
[1617246740033,31.70331592,1922.2,1922.1,0.16313596]
[1617246740262,30.65732152,1922.2,1922.1,0.16313596]
[1617246740662,30.26732152,1922.2,1922.1,0.16313596]
[1617246740862,30.53875784,1922.2,1922.1,0.16313596]
[1617246741062,35.54875784,1922.2,1922.1,0.16313596]
[1617246741699,35.27732152,1922.2,1922.1,0.16313596]
[1617246742695,21.06732152,1922.2,1922.1,0.16313596]
[1617246742906,21.72434,1922.2,1922.1,0.16313596]
[1617246743306,20.52434,1922.2,1922.1,0.16313596]
[1617246744007,21.72434,1922.2,1922.1,0.16313596]
[1617246744207,21.72434,1922.2,1922.1,0.11313596]
[1617246744411,22.13434,1922.2,1922.1,0.11313596]
[1617246745210,20.52434,1922.2,1922.1,0.11313596]
[1617246747211,21.72434,1922.2,1922.1,0.11313596]
[1617246748233,20.52434,1922.2,1922.1,0.11313596]
[1617246748433,14.77434,1922.2,1922.1,0.11313596]
[1617246748634,7.80214,1922.2,1922.1,0.11313596]
[1617246749036,21.20214,1922.2,1922.1,0.11313596]
[1617246750037,27.10214,1922.2,1922.1,0.11313596]
[1617246750239,21.20214,1922.2,1922.1,0.11313596]
[1617246751088,22.40214,1922.2,1922.1,0.11313596]
[1617246752292,22.80214,1922.2,1922.1,0.11313596]
[1617246752693,22.40214,1922.2,1922.1,0.11313596]
[1617246753294,21.20214,1922.2,1922.1,0.11313596]
[1617246753494,5.92134,1922.2,1922.1,0.11313596]
[1617246754097,29.17134,1922.2,1922.1,0.11313596]
[1617246754495,35.38134,1922.2,1922.1,0.11313596]
[1617246755697,21.17134,1922.2,1922.1,0.11313596]
[1617246755898,30.37134,1922.2,1922.1,0.11313596]
[1617246756338,35.38134,1922.2,1922.1,0.11313596]
[1617246756538,33.53894,1922.2,1922.1,0.11313596]
[1617246756939,27.38134,1922.2,1922.1,0.11313596]
[1617246758140,34.18134,1922.2,1922.1,0.11313596]
[1617246758945,26.18134,1922.2,1922.1,0.11313596]
[1617246759146,21.17134,1922.2,1922.1,0.11313596]
[1617246759546,19.33424,1922.2,1922.1,0.11313596]
[1617246759747,20.53424,1922.2,1922.1,0.11313596]
[1617246760547,19.33424,1922.2,1922.1,0.11313596]
[1617246760746,20.53424,1922.2,1922.1,0.11313596]
[1617246762558,18.69274,1922.2,1922.1,0.11313596]
[1617246762762,30.50274,1922.2,1922.1,0.11313596]
[1617246762960,22.50274,1922.2,1922.1,0.11313596]
[1617246763363,17.49274,1922.2,1922.1,0.11313596]
[1617246763763,17.49274,1922.2,1922.1,0.16314444]
[1617246765583,15.65454,1922.2,1922.1,0.16314444]
[1617246766806,21.05454,1922.2,1922.1,0.16314444]
[1617246767008,39.76784,1922.2,1922.1,0.16314444]
[1617246767209,40.46374,1922.2,1922.1,0.16314444]
[1617246767408,42.25574,1922.2,1922.1,0.16314444]
[1617246767611,3.24042058,1922.1,1921.2,2.385]
[1617246767808,3.24042058,1922.1,1921.3,0.315]
[1617246767809,0.4,1921.5,1921.3,0.315]
[1617246768011,9.1277,1921.6,1921.3,0.28]
[1617246768209,9.885913,1921.5,1921.2,2.0]
[1617246768410,3.281243,1921.5,1921.2,2.0]
[1617246768608,1.438143,1921.5,1921.2,2.0]
[1617246769239,1.438143,1921.5,1921.2,2.68]
[1617246769440,7.8066,1921.4,1921.2,0.68]
[1617246770237,10.646933,1921.5,1921.2,0.68]
[1617246770438,0.238143,1921.5,1921.2,0.792]
[1617246770837,0.188143,1921.5,1921.3,0.38]